bitfinex/quotes_BTCUSD_20260215
["timestamp","ask_amount","ask_price","bid_price","bid_amount"]
[1771163768445,4e-05,68952.0,68951.0,0.63576212]
[1771163768699,0.09288,68971.0,68958.0,0.02492192]
[1771163768904,0.02410847,68974.0,68956.0,0.07250985]
[1771163768905,0.02410847,68974.0,68959.0,0.56307496]
[1771163769116,0.01335722,68973.0,68959.0,0.56307496]
[1771163769322,0.01335722,68973.0,68957.0,0.07250865]
[1771163769323,1e-08,68975.0,68961.0,0.53828416]
[1771163769526,1e-08,68975.0,68965.0,0.53828416]
[1771163769959,0.00012953,68975.0,68965.0,0.53828416]
[1771163771244,0.00012953,68975.0,68967.0,0.53828416]
[1771163771452,0.00012953,68975.0,68967.0,0.56320608]
[1771163771907,0.00012953,68975.0,68968.0,0.02492192]
[1771163772122,0.00012953,68975.0,68969.0,0.53828416]
[1771163772506,0.00012953,68975.0,68956.0,0.29003889]
[1771163772507,0.00012953,68975.0,68956.0,0.07250806]
[1771163772733,0.00012953,68975.0,68959.0,0.07250659]
[1771163772942,0.00012953,68975.0,68947.0,0.32671134]
[1771163772943,4e-05,68980.0,68962.0,0.53828416]
[1771163773150,0.37183667,68994.0,68978.0,0.02492192]
[1771163773329,0.3477282,68994.0,68981.0,0.53805852]
[1771163773535,0.3477282,68994.0,68985.0,0.53805852]
[1771163773746,0.3477282,68994.0,68987.0,0.53805852]
[1771163774156,0.0003316,68993.0,68987.0,0.53805852]
[1771163774563,0.07287265,68992.0,68987.0,0.53805852]
[1771163775407,0.07251482,68990.0,68987.0,0.56299221]
[1771163775609,0.07287265,68992.0,68988.0,0.52492978]
[1771163775814,0.07247532,68989.0,68988.0,0.52492978]
[1771163776400,0.07287532,68989.0,68988.0,0.52492978]
[1771163776822,0.07247358,68991.0,68988.0,0.54986347]
[1771163777033,0.0004,68992.0,68988.0,0.54986347]
[1771163777173,0.07247396,68991.0,68988.0,0.54986347]
[1771163778254,0.07280326,68993.0,68988.0,0.52492978]
[1771163778424,0.07280326,68993.0,68990.0,0.52492978]
[1771163778685,0.07280326,68993.0,68980.0,4e-05]
[1771163778686,0.35185593,68992.0,68980.0,4e-05]
[1771163779014,0.07248051,68985.0,68980.0,4e-05]
[1771163779542,0.07247839,68987.0,68980.0,4e-05]
[1771163779752,0.07247568,68989.0,68980.0,0.52496978]
[1771163780066,0.07247716,68988.0,68980.0,0.54990347]
[1771163780267,0.07247742,68987.0,68980.0,0.54990347]
[1771163780455,0.07247568,68989.0,68980.0,0.52496978]
[1771163780660,0.07247683,68988.0,68982.0,0.52492978]
[1771163781153,0.07247683,68988.0,68982.0,0.5247808]
[1771163781359,0.0724755,68989.0,68982.0,0.5247808]
[1771163781562,0.0724755,68989.0,68982.0,0.52463183]
[1771163782602,0.07247426,68991.0,68982.0,0.52463183]
[1771163782814,0.07247289,68992.0,68982.0,0.52463183]
[1771163783139,4e-05,68984.0,68982.0,0.52463183]
[1771163783368,4e-05,68986.0,68984.0,0.52492978]
[1771163783564,4e-05,68990.0,68984.0,0.52492978]
[1771163783774,0.07251289,68992.0,68986.0,0.54986347]
[1771163783775,4e-05,68992.0,68986.0,0.54986347]
[1771163784221,0.0003316,68993.0,68986.0,0.52492978]
[1771163784531,0.0003316,68993.0,68982.0,4e-05]
[1771163784532,0.0003316,68993.0,68990.0,0.52492978]
[1771163784950,0.0003316,68993.0,68986.0,0.52492978]
[1771163788019,0.09284,68995.0,68988.0,0.52492978]
[1771163788234,0.09284,68995.0,68988.0,0.54986347]
[1771163788834,4e-05,68994.0,68988.0,0.54986347]
[1771163789080,8e-05,69000.0,68988.0,0.02493369]
[1771163789294,1e-08,69003.0,69001.0,0.52492978]
[1771163789505,1e-08,69003.0,69002.0,0.54986347]
[1771163790151,1e-08,69003.0,69002.0,0.62232513]
[1771163790373,0.0003188,69011.0,69001.0,0.52492978]
[1771163790583,4e-05,69020.0,69007.0,0.52492978]
[1771163790993,4e-05,69020.0,69007.0,0.59738591]
[1771163791201,4e-05,69020.0,69009.0,0.07245359]
[1771163791404,4e-05,69020.0,69009.0,0.54986347]
[1771163792201,0.0004,69010.0,69009.0,0.54986347]
[1771163792682,0.0004,69017.0,69009.0,0.54986347]
[1771163794926,0.0004,69017.0,69011.0,0.52492978]
[1771163795310,4e-05,69020.0,69013.0,0.52492978]
[1771163795521,4e-05,69020.0,69015.0,0.52492978]
[1771163795742,4e-05,69020.0,69006.0,0.07245682]
[1771163795929,4e-05,69020.0,69007.0,0.5973853]
[1771163796135,4e-05,69020.0,68999.0,0.28984667]
[1771163796136,4e-05,69020.0,69008.0,0.02493369]
[1771163796371,4e-05,69020.0,69012.0,0.52492978]
[1771163796540,0.0003188,69029.0,68996.0,0.78208712]
[1771163796541,0.0003188,69029.0,69018.0,0.52492978]
[1771163796744,0.00044836,69029.0,69020.0,0.52492978]
[1771163797353,0.00044836,69029.0,69020.0,0.54986347]
[1771163797579,0.00044836,69029.0,69022.0,0.02493369]
[1771163797752,0.00044836,69029.0,69023.0,0.52492978]
[1771163798509,4e-05,69024.0,69023.0,0.54986347]
[1771163798830,4e-05,69026.0,69025.0,0.52492978]
[1771163799661,4e-05,69026.0,69022.0,0.52492978]
[1771163799886,4e-05,69026.0,69022.0,0.54986347]
[1771163800096,0.00084836,69029.0,69023.0,0.02493369]
[1771163800298,0.00084836,69029.0,69025.0,0.02493369]
[1771163800500,0.00084836,69029.0,69026.0,0.54986347]
[1771163800923,0.00084836,69029.0,69019.0,0.59737277]
[1771163801107,0.00084836,69029.0,69021.0,0.52492978]
[1771163802188,0.00084836,69029.0,68980.0,0.65949039]
[1771163802189,4e-05,69024.0,68980.0,0.65949039]
[1771163802332,4e-05,69024.0,68970.0,0.65949039]
[1771163802333,0.51011647,69019.0,68981.0,0.52492978]
[1771163802517,4e-05,69020.0,68981.0,0.52492978]
[1771163802518,0.07246476,69000.0,68981.0,0.52492978]
[1771163802723,0.02379931,68998.0,68981.0,0.52492978]
[1771163802948,0.07246902,68995.0,68981.0,0.52492978]
[1771163803143,0.02422637,68996.0,68981.0,0.52492978]
[1771163803349,0.07246901,68995.0,68981.0,0.52492978]
[1771163803554,0.07247198,68993.0,68981.0,0.52492978]
[1771163803757,0.07247198,68993.0,68975.0,0.0002]
[1771163803758,0.0928,69010.0,68982.0,0.00032956]
[1771163803965,0.02265028,68996.0,68982.0,0.00032956]
[1771163804212,0.09511928,68996.0,68982.0,0.00032956]
[1771163804548,0.09511928,68996.0,68982.0,0.48814454]
[1771163804751,0.07246932,68995.0,68982.0,0.48814454]
[1771163805089,0.0951196,68995.0,68982.0,0.48814454]
[1771163805697,0.50186584,68998.0,68982.0,0.00032956]
[1771163805884,0.02265028,68995.0,68982.0,0.00032956]
[1771163806085,0.07247506,68991.0,68990.0,0.02728521]
[1771163806278,0.09512534,68991.0,68990.0,0.02728521]
[1771163806508,0.09512534,68991.0,68982.0,0.00032956]
[1771163807271,0.02265028,68991.0,68982.0,0.00032956]
[1771163808581,0.0951235,68991.0,68982.0,0.00032956]
[1771163808800,0.0004,68995.0,68982.0,0.00032956]
[1771163808981,0.02265028,68994.0,68982.0,0.00032956]
[1771163809234,0.07247295,68992.0,68982.0,0.00032956]
[1771163809436,0.07247154,68993.0,68982.0,0.00032956]
[1771163810030,0.0004,68995.0,68982.0,0.5112543]
[1771163811208,0.0004,68995.0,68984.0,0.48781498]
[1771163811424,0.0004,69002.0,68982.0,0.00032956]
[1771163811425,0.0004,69002.0,68987.0,0.02310976]
[1771163811627,0.0004,69002.0,68982.0,0.34756956]
[1771163811628,0.0004,69002.0,68992.0,0.02310976]
[1771163811840,0.0004,69002.0,68994.0,0.51092474]
[1771163812259,0.0004,69002.0,68995.0,0.48781498]
[1771163812473,0.0004,69002.0,68995.0,0.51092474]
[1771163813343,4e-05,68996.0,68995.0,0.51084474]
[1771163814005,4e-05,68998.0,68996.0,0.02310976]
[1771163814223,8e-05,69000.0,68997.0,0.48781498]
[1771163814464,8e-05,69000.0,68997.0,0.51092474]
[1771163815125,4e-05,69004.0,68997.0,0.48781498]
[1771163815335,4e-05,69010.0,68988.0,0.28994373]
[1771163815336,4e-05,69010.0,69001.0,0.48781498]
[1771163815545,4e-05,69010.0,69002.0,0.48781498]
[1771163815718,4e-05,69010.0,69005.0,0.02310976]
[1771163815915,4e-05,69010.0,69007.0,0.51092474]
[1771163816560,4e-05,69020.0,69007.0,0.48781498]
[1771163816737,4e-05,69020.0,69008.0,0.51092474]
[1771163816944,4e-05,69020.0,69004.0,0.02310976]
[1771163817112,0.07244385,69019.0,69004.0,0.51092474]
[1771163817758,4e-05,69020.0,69005.0,0.0724585]
[1771163817938,4e-05,69020.0,69006.0,0.28982863]
[1771163818142,4e-05,69020.0,69006.0,0.02310976]
[1771163818414,4e-05,69020.0,69009.0,0.48781498]
[1771163818994,0.02265028,69019.0,69003.0,0.48781498]
[1771163819324,0.02265028,69019.0,69005.0,0.51092474]
[1771163819526,0.09509445,69019.0,69005.0,0.51092474]
[1771163819814,0.09509445,69019.0,69005.0,0.48781498]
[1771163819815,0.02265028,69019.0,69005.0,0.48781498]
[1771163820010,4e-05,69020.0,69007.0,0.48781498]
[1771163820147,4e-05,69020.0,69007.0,0.51092474]
[1771163820758,4e-05,69020.0,69008.0,0.51092474]
[1771163820969,4e-05,69020.0,69009.0,0.51092474]
[1771163821763,4e-05,69020.0,69005.0,0.07245831]
[1771163821764,4e-05,69020.0,69012.0,0.02310976]
[1771163821965,4e-05,69020.0,69014.0,0.02310976]
[1771163822585,4e-05,69024.0,69014.0,0.48781498]
[1771163822874,0.00016954,69024.0,69017.0,0.51092474]
[1771163823832,0.00016954,69024.0,69018.0,0.02310976]
[1771163824054,0.00016954,69024.0,69018.0,0.51092474]
[1771163824509,4e-05,69026.0,69019.0,0.48781498]
[1771163824730,4e-05,69026.0,69020.0,0.02310976]
[1771163825171,4e-05,69026.0,69014.0,0.37034976]
[1771163825370,4e-05,69026.0,69015.0,0.48781498]
[1771163825579,0.0004,69027.0,69015.0,0.51092474]
[1771163825793,0.02265028,69026.0,69014.0,0.00012954]
[1771163825994,0.0724368,69026.0,69014.0,0.00012954]
[1771163826186,0.02265028,69024.0,69014.0,0.00012954]
[1771163826836,0.09508968,69024.0,69014.0,0.00012954]
[1771163827036,0.07245446,69009.0,68992.0,0.02310976]
[1771163827158,2e-08,69008.0,68992.0,0.02310976]
[1771163827367,2e-08,69008.0,68993.0,0.07247079]
[1771163827568,2e-08,69008.0,68986.0,0.3472]
[1771163827569,0.07244217,69021.0,69001.0,0.02499999]
[1771163827774,0.0724443,69019.0,69004.0,0.48781498]
[1771163827988,0.00012947,69021.0,69006.0,0.48781498]
[1771163828196,8e-05,69010.0,69008.0,0.07241533]
[1771163828391,4e-05,69012.0,69007.0,0.58527114]
[1771163828655,4e-05,69012.0,69008.0,0.02499999]
[1771163828879,4e-05,69014.0,69009.0,0.48781498]
[1771163829086,4e-05,69014.0,69002.0,4e-05]
[1771163829286,4e-05,69014.0,69003.0,0.02499999]
[1771163829436,4e-05,69014.0,69004.0,0.02499999]
[1771163829648,4e-05,69014.0,69006.0,0.02499999]
[1771163830404,4e-05,69014.0,69007.0,0.02499999]
[1771163830637,4e-05,69016.0,69007.0,0.48781498]
[1771163830833,4e-05,69018.0,69015.0,0.02499999]
[1771163831780,4e-05,69022.0,69016.0,0.48781498]
[1771163831982,4e-05,69022.0,69018.0,0.02499999]
[1771163832334,4e-05,69022.0,69015.0,0.48781498]
[1771163832540,4e-05,69022.0,69008.0,0.02499999]
[1771163832739,4e-05,69022.0,69008.0,0.48781498]
[1771163832948,4e-05,69022.0,69009.0,0.48781498]
[1771163833135,4e-05,69022.0,69010.0,0.02499999]
[1771163833636,4e-05,69022.0,69010.0,0.58485395]
[1771163833843,4e-05,69022.0,69012.0,0.02499999]
[1771163834361,0.0724298,69033.0,69020.0,4e-05]
[1771163834558,0.00043171,69033.0,69030.0,4e-05]
[1771163835523,0.07286157,69033.0,69030.0,4e-05]
[1771163835726,0.07286157,69033.0,69020.0,4e-05]
[1771163835727,0.00043171,69033.0,69020.0,4e-05]
[1771163835883,0.07243017,69032.0,69020.0,4e-05]
[1771163836066,0.07286115,69033.0,69020.0,4e-05]
[1771163836269,0.00043171,69033.0,69020.0,4e-05]
[1771163836879,0.00043171,69033.0,69021.0,0.51240144]
[1771163837109,0.00043171,69033.0,69023.0,0.51240144]
[1771163837514,0.00043171,69033.0,69025.0,0.53740143]
[1771163837679,0.00143171,69033.0,69025.0,0.53740143]
[1771163837893,0.00143171,69033.0,69026.0,0.02499999]
[1771163838084,0.00143171,69033.0,69027.0,0.51240144]
[1771163838485,0.00043171,69033.0,69027.0,0.51240144]
[1771163838900,0.00043171,69033.0,69021.0,0.53740143]
[1771163839102,0.00043171,69033.0,69023.0,0.51240144]
[1771163839321,0.00043171,69033.0,69021.0,0.02499999]
[1771163839726,0.00083171,69033.0,69021.0,0.53740143]
[1771163839939,0.00083171,69033.0,69022.0,0.53740143]
[1771163840389,0.00083171,69033.0,69020.0,4e-05]
[1771163840390,0.00083171,69033.0,69023.0,0.02499999]
[1771163840530,0.00083171,69033.0,69023.0,0.53740143]
[1771163840727,0.00083171,69033.0,69023.0,0.53725239]
[1771163841351,0.00083171,69033.0,69025.0,0.07243685]
[1771163841599,0.00083171,69033.0,69026.0,0.07243621]
[1771163842235,0.00083171,69033.0,69027.0,0.07243535]
[1771163842646,0.00083171,69033.0,69027.0,0.58483679]
[1771163842844,0.00083171,69033.0,69020.0,4e-05]
[1771163843195,0.00083171,69033.0,69022.0,0.07244067]
[1771163843393,4e-05,69030.0,69028.0,0.51240144]
[1771163843595,0.00083171,69033.0,69029.0,0.02493682]
[1771163843811,4e-05,69036.0,69032.0,0.51240144]
[1771163844033,4e-05,69036.0,69034.0,0.51240144]
[1771163844255,0.07241463,69047.0,69034.0,0.53733826]
[1771163844430,0.00014906,69045.0,69028.0,0.53733826]
[1771163844833,0.07256603,69045.0,69028.0,0.51240144]
[1771163845033,0.07256603,69045.0,69026.0,0.07247589]
[1771163845034,0.07256603,69045.0,69029.0,0.53733826]
[1771163845245,0.00014906,69045.0,69029.0,0.53733826]
[1771163845455,0.00014906,69045.0,69030.0,0.02493682]
[1771163845661,4e-05,69050.0,69029.0,0.51240144]
[1771163845785,0.07241366,69048.0,69031.0,0.51240144]
[1771163845987,0.07241366,69048.0,69032.0,0.53733826]
[1771163846217,0.07256219,69049.0,69032.0,0.53733826]
[1771163846634,0.0724138,69048.0,69032.0,0.53718922]
[1771163846849,0.00014906,69049.0,69032.0,0.53718922]
[1771163847120,0.07256187,69049.0,69032.0,0.53718922]
[1771163847321,0.00014906,69049.0,69032.0,0.53718922]
[1771163847489,4e-05,69050.0,69034.0,0.51240144]
[1771163847666,4e-05,69050.0,69034.0,0.53733826]
[1771163848059,0.0004,69038.0,69036.0,0.51240144]
[1771163848260,0.07241234,69049.0,69037.0,0.02493682]
[1771163848464,4e-05,69050.0,69037.0,0.53733826]
[1771163848656,0.0133687,69049.0,69037.0,0.53733826]
[1771163848858,0.0004,69045.0,69030.0,8e-05]
[1771163849180,0.0004,69045.0,69031.0,0.02493682]
[1771163849389,0.0004,69045.0,69031.0,0.51240144]
[1771163849592,0.0004,69045.0,69035.0,0.02493682]
[1771163849793,0.0004,69045.0,69036.0,0.53733826]
[1771163850195,0.0004,69045.0,69037.0,0.02493682]
[1771163850402,0.0004,69045.0,69033.0,0.07242892]
[1771163850403,0.0004,69045.0,69039.0,0.51240144]
[1771163850562,0.0004,69045.0,69040.0,0.02493682]
[1771163850763,0.0004,69045.0,69042.0,0.02493682]
[1771163850969,0.0004,69045.0,69043.0,0.51240144]
[1771163851176,0.0004,69045.0,69042.0,0.53733826]
[1771163851588,0.0004,69045.0,69042.0,0.51240144]
[1771163851803,0.0004,69045.0,69036.0,0.07242595]
[1771163851804,4e-05,69050.0,69044.0,0.51240144]
[1771163852633,4e-05,69050.0,69041.0,0.02493682]
[1771163852837,4e-05,69050.0,69041.0,0.53733826]
[1771163853579,0.00104,69050.0,69041.0,0.53733826]
[1771163855348,4e-05,69050.0,69041.0,0.02493682]
[1771163855668,4e-05,69050.0,69033.0,0.07242832]
[1771163855669,0.0002981,69049.0,69030.0,0.00012946]
[1771163855870,0.00104,69050.0,69030.0,0.00012946]
[1771163855871,0.0002981,69046.0,69030.0,0.00012946]
[1771163856046,0.0002981,69042.0,69030.0,0.00012946]
[1771163858359,0.0002181,69042.0,69030.0,0.00012946]
[1771163859607,0.0012181,69042.0,69030.0,0.00012946]
[1771163860014,0.0002181,69042.0,69030.0,0.00012946]
[1771163860426,0.07242073,69041.0,69026.0,0.53733826]
[1771163860636,0.07242073,69041.0,69026.0,0.53776997]
[1771163861975,0.07363985,69042.0,69026.0,0.53776997]
[1771163862203,0.07242145,69041.0,69026.0,0.53776997]
[1771163863146,0.07242478,69038.0,69026.0,0.00043171]
[1771163863383,0.07259967,69041.0,69026.0,0.00043171]
[1771163863638,0.07359967,69041.0,69026.0,0.00043171]
[1771163864351,0.07242493,69037.0,69026.0,0.00043171]
[1771163867795,0.0724241,69038.0,69026.0,0.00043171]
[1771163867999,0.0005781,69041.0,69027.0,0.46339604]
[1771163868228,0.0004,69041.0,69027.0,0.56074192]
[1771163868425,0.0004,69041.0,69029.0,0.46339604]
[1771163868650,0.0004,69041.0,69031.0,0.46339604]
[1771163872602,0.0004,69041.0,69031.0,0.48830699]
[1771163873038,0.0004,69041.0,69031.0,0.48850699]
[1771163873268,4e-05,69032.0,69031.0,0.48827805]
[1771163873481,0.00044,69050.0,69033.0,0.07242832]
[1771163873685,0.00044,69050.0,69037.0,0.02491095]
[1771163873862,0.00044,69050.0,69040.0,0.46339604]
[1771163874490,0.00044,69050.0,69039.0,0.02491095]
[1771163874698,0.00044,69050.0,69036.0,0.46339604]
[1771163875731,0.00044,69050.0,69036.0,0.48830699]
[1771163876138,0.0001781,69049.0,69032.0,4e-05]
[1771163876384,0.0001781,69049.0,69032.0,0.48834699]
[1771163876587,0.0001781,69049.0,69033.0,0.02491095]
[1771163876803,0.0001781,69049.0,69034.0,0.46339604]
[1771163877458,0.07259058,69049.0,69034.0,0.46339604]
[1771163878649,0.0001781,69049.0,69034.0,0.48830699]
[1771163878849,0.07259058,69049.0,69034.0,0.48830699]
[1771163879067,0.07281353,69048.0,69034.0,0.48830699]
[1771163879287,0.0004,69048.0,69034.0,0.48830699]
[1771163879510,0.01339918,69047.0,69032.0,4e-05]
[1771163879727,0.0001781,69046.0,69032.0,4e-05]
[1771163880156,0.07241488,69047.0,69032.0,4e-05]
[1771163880157,0.07241488,69047.0,69033.0,0.02491095]
[1771163880364,0.07241564,69046.0,69033.0,0.48830699]
[1771163880753,0.07381518,69048.0,69034.0,0.02491095]
[1771163880957,0.01339964,69047.0,69038.0,0.02491095]
[1771163881158,0.07281372,69048.0,69039.0,0.46339604]
[1771163881374,0.08580723,69047.0,69039.0,0.46339604]
[1771163881587,0.07281372,69048.0,69032.0,4e-05]
[1771163881588,0.07241844,69044.0,69032.0,4e-05]
[1771163881809,0.07241844,69045.0,69032.0,4e-05]
[1771163882026,0.07241596,69046.0,69032.0,0.48834699]
[1771163882242,0.0005781,69048.0,69032.0,0.48834699]
[1771163882458,0.08580646,69047.0,69032.0,0.48834699]
[1771163882662,0.07241444,69047.0,69033.0,0.02491095]
[1771163882874,0.0001781,69046.0,69032.0,4e-05]
[1771163883091,0.07242197,69040.0,69032.0,4e-05]
[1771163883340,0.07259924,69041.0,69032.0,4e-05]
[1771163884188,0.0001781,69041.0,69032.0,4e-05]
[1771163884869,0.07241999,69042.0,69032.0,4e-05]
[1771163885520,0.07241999,69042.0,69031.0,0.0002]
[1771163885737,0.07242086,69041.0,69031.0,0.0002]
[1771163886124,0.07242271,69041.0,69031.0,0.0002]
[1771163886332,0.07242386,69039.0,69031.0,0.0002]
[1771163886543,0.07242204,69040.0,69031.0,0.0002]
[1771163887148,0.07259915,69041.0,69031.0,0.0002]
[1771163887348,0.07259915,69041.0,69031.0,5.108e-05]
[1771163888348,4e-05,69034.0,69031.0,5.108e-05]
[1771163888556,4e-05,69036.0,69031.0,5.108e-05]
[1771163891949,4e-05,69036.0,69030.0,0.0002]
[1771163891950,4e-05,69036.0,69026.0,0.00043171]
[1771163892159,0.07242763,69035.0,69026.0,0.00043171]
[1771163892378,4e-05,69036.0,69026.0,0.00043171]
[1771163892790,0.0724278,69035.0,69026.0,0.00043171]
[1771163893208,0.07246632,69036.0,69030.0,0.0002]
[1771163893619,0.07242732,69035.0,69030.0,0.0002]
[1771163893834,0.07246635,69036.0,69030.0,0.0002]
[1771163894683,4e-05,69036.0,69030.0,0.0002]
[1771163895529,4e-05,69036.0,69030.0,0.456854]
[1771163897998,4e-05,69036.0,69030.0,0.0002]
[1771163901015,4e-05,69036.0,69030.0,5.111e-05]
[1771163901899,4e-05,69038.0,69032.0,0.02491095]
[1771163902098,4e-05,69038.0,69030.0,5.111e-05]
[1771163902903,4e-05,69038.0,69030.0,0.45670511]
[1771163903388,4e-05,69032.0,69031.0,0.02491095]
[1771163903626,4e-05,69032.0,69031.0,0.48156495]
[1771163905776,4e-05,69032.0,69031.0,0.48141605]
[1771163906178,4e-05,69032.0,69031.0,0.02476205]
[1771163906358,4e-05,69032.0,69030.0,5.111e-05]
[1771163914536,4e-05,69032.0,69024.0,0.00024]
[1771163914537,0.07243241,69030.0,69024.0,0.00024]
[1771163914738,4e-05,69034.0,69025.0,0.4814905]
[1771163914996,4e-05,69034.0,69028.0,0.0248365]
[1771163915192,4e-05,69034.0,69030.0,0.4814905]
[1771163915404,4e-05,69034.0,69030.0,0.456654]
[1771163915577,0.00044,69036.0,69033.0,0.0248365]
[1771163915761,0.00044,69036.0,69024.0,0.00024]
[1771163915959,0.07242796,69035.0,69024.0,0.00024]
[1771163916185,0.07242702,69035.0,69020.0,0.0002]
[1771163916401,0.21777643,69034.0,69020.0,0.0002]
[1771163916564,0.07244164,69022.0,69020.0,0.0002]
[1771163917002,0.07244165,69023.0,69020.0,0.0002]
[1771163917214,0.07244082,69022.0,69017.0,0.0002]
[1771163917572,0.07243991,69023.0,69017.0,0.0002]
[1771163917924,0.07244066,69024.0,69017.0,0.0002]
[1771163917925,0.07243873,69024.0,69017.0,0.0002]
[1771163918165,0.07244201,69021.0,69017.0,0.0002]
[1771163918366,4e-05,69020.0,69017.0,0.0002]
[1771163919911,0.07245641,69007.0,68999.0,0.0002]
[1771163920118,0.07245733,69007.0,68999.0,0.00032947]
[1771163920326,0.07245473,69009.0,68999.0,0.00032947]
[1771163920532,0.07245567,69008.0,68999.0,0.00032947]
[1771163920960,0.07245655,69007.0,68999.0,0.00032947]
[1771163921395,0.07245473,69009.0,68999.0,0.00032947]
[1771163921396,0.0724557,69008.0,68999.0,0.00032947]
[1771163921598,0.07245902,69005.0,68999.0,0.00032947]
[1771163921720,0.0724599,69004.0,68999.0,0.00032947]
[1771163922133,0.07245876,69005.0,68999.0,0.00032947]
[1771163922562,0.07246055,69004.0,68999.0,0.00032947]
[1771163922770,0.07246186,69002.0,68999.0,0.00032947]
[1771163922970,0.01240908,69011.0,68999.0,0.00032947]
[1771163923203,0.28980656,69012.0,68982.0,0.07293603]
[1771163923204,0.28980656,69012.0,68982.0,0.000454]
[1771163923412,0.28980656,69012.0,68968.0,0.000454]
[1771163923413,0.01240908,69000.0,68968.0,0.000454]
[1771163923616,0.01240908,68978.0,68968.0,0.000454]
[1771163923825,0.07249336,68972.0,68968.0,0.000454]
[1771163924073,0.01240908,68978.0,68968.0,0.000454]
[1771163924240,0.28993747,68981.0,68968.0,0.000454]
[1771163924427,0.07248887,68977.0,68968.0,0.45413043]
[1771163924804,0.0848949,68980.0,68968.0,0.00058352]
[1771163925014,0.07249265,68973.0,68968.0,0.00058352]
[1771163925259,0.01240908,68984.0,68968.0,0.00058352]
[1771163925451,0.43484162,68991.0,68968.0,0.00058352]
[1771163925452,0.0724929,68973.0,68968.0,0.00058352]
[1771163926205,0.07249065,68975.0,68968.0,0.00058352]
[1771163926206,0.07249122,68974.0,68968.0,0.00058352]
[1771163929054,0.001,68973.0,68968.0,0.00058352]
[1771163929430,0.07249065,68975.0,68968.0,0.00058352]
[1771163929836,0.001,68974.0,68968.0,0.00058352]
[1771163930275,0.07248868,68977.0,68968.0,0.45425995]
[1771163930641,0.28993321,68982.0,68968.0,0.45425995]
[1771163930642,0.07249368,68972.0,68968.0,0.00058352]
[1771163930839,0.07250116,68965.0,68956.0,0.02498187]
[1771163931195,0.0384,68995.0,68960.0,0.45367643]
[1771163931196,0.07249184,68974.0,68960.0,0.45367643]
[1771163931519,0.46901621,68985.0,68962.0,0.4786583]
[1771163931648,0.07249188,68974.0,68962.0,0.4786583]
[1771163932457,0.07249416,68972.0,68962.0,0.4786583]
[1771163932659,0.07249438,68971.0,68968.0,0.0002]
[1771163933093,0.07249416,68972.0,68968.0,0.0002]
[1771163933302,8e-05,68970.0,68968.0,0.00016]
[1771163933722,8e-05,68970.0,68968.0,0.0002728]
[1771163934266,0.07249897,68967.0,68961.0,0.0002]
[1771163934680,0.01240908,68969.0,68957.0,0.0003012]
[1771163934833,8e-05,68970.0,68945.0,0.0002]
[1771163934834,0.07251316,68953.0,68945.0,0.0002]
[1771163935027,0.00043141,68953.0,68945.0,0.0002]
[1771163936271,0.07251505,68952.0,68945.0,0.0002]
[1771163936477,0.07294494,68953.0,68945.0,0.0002]
[1771163936613,0.07251465,68952.0,68945.0,0.0002]
[1771163936824,0.0725152,68952.0,68945.0,0.0002]
[1771163937645,0.07251526,68951.0,68945.0,0.0002]
[1771163939050,0.07251504,68952.0,68945.0,0.0002]
[1771163939804,0.07251721,68950.0,68945.0,0.0002]
[1771163940636,0.07251606,68951.0,68945.0,0.0002]
[1771163940846,0.00043141,68953.0,68945.0,0.0002]
[1771163941258,0.29001301,68963.0,68945.0,0.0002]
[1771163941259,0.07249826,68968.0,68952.0,0.45359015]
[1771163941458,0.0001293,68968.0,68955.0,0.02498187]
[1771163941661,0.0001293,68968.0,68958.0,0.45359015]
[1771163941864,0.0001293,68968.0,68961.0,0.02498187]
[1771163942137,0.07252974,68976.0,68961.0,0.02498187]
[1771163942344,4e-05,68976.0,68965.0,0.02498187]
[1771163942548,4e-05,68976.0,68968.0,0.45353229]
[1771163942775,4e-05,68976.0,68970.0,0.45353229]
[1771163942989,4e-05,68976.0,68972.0,0.44294667]
[1771163943195,4e-05,68976.0,68964.0,4e-05]
[1771163943196,0.28996025,68975.0,68964.0,4e-05]
[1771163943402,4e-05,68976.0,68964.0,4e-05]
[1771163943403,0.07249403,68972.0,68964.0,4e-05]
[1771163944045,0.07249465,68971.0,68964.0,4e-05]
[1771163944277,0.07249423,68973.0,68964.0,4e-05]
[1771163944498,0.07249514,68971.0,68964.0,4e-05]
[1771163944726,0.07249043,68975.0,68964.0,4e-05]
[1771163944943,0.07249142,68974.0,68964.0,4e-05]
[1771163945614,0.07249142,68974.0,68962.0,0.47639704]
[1771163945726,0.07249244,68973.0,68962.0,0.45141517]
[1771163945933,0.07249244,68973.0,68964.0,0.45141517]
[1771163946795,0.07249244,68973.0,68964.0,0.45161517]
[1771163947032,0.07252967,68976.0,68964.0,0.45161517]
[1771163947033,0.07249144,68974.0,68964.0,0.45161517]
[1771163947480,4e-05,68976.0,68966.0,0.45141517]
[1771163947684,4e-05,68976.0,68968.0,0.47639704]
[1771163948292,4e-05,68970.0,68969.0,0.47637304]
[1771163949511,4e-05,68976.0,68969.0,0.45139117]
[1771163949732,4e-05,68976.0,68971.0,0.47636504]
[1771163950598,4e-05,68976.0,68971.0,0.45138317]
[1771163950838,4e-05,68976.0,68973.0,0.45138317]
[1771163951042,4e-05,68976.0,68973.0,0.47636504]
[1771163951249,0.00104,68976.0,68973.0,0.47636504]
[1771163953013,0.00104,68976.0,68973.0,0.45138317]
[1771163953243,4e-05,68976.0,68969.0,0.02498187]
[1771163953450,4e-05,68976.0,68970.0,0.4781531]
[1771163953815,0.0004,68974.0,68970.0,0.4781531]
[1771163954013,0.0004,68974.0,68970.0,0.50139094]
[1771163955259,0.0004,68974.0,68965.0,0.02323784]
[1771163955463,0.0004,68974.0,68966.0,0.4781531]
[1771163955668,0.0004,68974.0,68966.0,0.50139094]
[1771163957677,1e-08,68971.0,68966.0,0.501242]
[1771163958126,1e-08,68971.0,68964.0,0.0002]
[1771163958611,1e-08,68974.0,68967.0,0.4781531]
[1771163958830,1e-08,68974.0,68969.0,0.4781531]
[1771163959002,1e-08,68974.0,68972.0,0.02323784]
[1771163959246,1e-08,68974.0,68973.0,0.50139094]
[1771163959452,1e-08,68974.0,68973.0,0.50124202]
[1771163961202,1e-08,68974.0,68973.0,0.47800418]
[1771163961762,1e-08,68974.0,68973.0,0.47785526]
[1771163963187,4.001e-05,68974.0,68969.0,0.02323784]
[1771163963353,4.001e-05,68974.0,68970.0,0.4781531]
[1771163963562,4.001e-05,68974.0,68970.0,0.50139094]
[1771163965597,4e-05,68976.0,68971.0,0.02323784]
[1771163965780,4e-05,68976.0,68972.0,0.50139094]
[1771163966249,0.07252869,68978.0,68972.0,0.50139094]
[1771163966250,0.00044,68988.0,68975.0,0.02323784]